Cogmind - Beta 15 @@@ ROGUE MODE // 2025.10.19 @ 16:59:06 Player: weras Result: Destroyed by L-41 Fighter with Axe Performance ------------- Evolutions (5) 2500 Regions Visited (16) 3200 Robots Destroyed (131) 655 Value Destroyed (5290) 5290 Prototype IDs (29) 580 Alien Tech Used (0) 0 Bonus (3291) 3291 TOTAL SCORE: 15516 Bonus ------- High Alert Combat Kills 174 Follower Combat Kills 717 Entered Garrisons 600 Used RIF Installer 1000 Entered DSFs 500 Aligned with FarCom 300 Cogmind --------- Core Integrity 0/1000 Matter 223/300 Energy 100/100 System Corruption 30% Temperature Cool (9) Movement Core (50) Location -5/Factory Parts ------- > --- POWER (2) -------- (None) > --- PROPULSION (4) --- (None) > --- UTILITY (7) ------ (None) > --- WEAPON (4) ------- (None) > --- INVENTORY (5) ---- Medium Treads Advanced Heat Sink Relay Coupler [Sentry] (22) Phase Cannon Improved Remote Datajack Peak State ------------ > --- POWER ------------ Hybrid Deuterium Engine Fission Core > --- PROPULSION ------- Armored Wheel Armored Wheel Armored Wheel Armored Wheel > --- UTILITY ---------- Improved Cooling System Advanced Cooling System High-capacity Storage Unit Enhanced Optical Array Improved Weapon Cycler Improved Transmission Jammer Layered Medium Armor Plating > --- WEAPON ----------- Quantum Rifle Heavy Ion Cannon Phase Cannon Phase Cannon > --- INVENTORY -------- Neutrino Core Armored Wheel Advanced Heat Sink Advanced Heat Sink Advanced Heat Sink Matter Compressor Advanced Targeting Computer Advanced Recoil Stabilizer Particle Charger Hardened Medium Armor Plating Relay Coupler [Sentry] Relay Coupler [Hunter] High-powered Tractor Beam Gatling Laser Wave Gun KE Penetrator KE Penetrator Assault Cannon Advanced Assault Cannon Mass Driver [Rating: 81] Favorites ----------- Power Fission Core Engine Hybrid Deuterium Engine Power Core Fission Core Propulsion Armored Wheel Wheel Armored Wheel Flight Unit Improved Cesium-ion Thruster Utility High-capacity Storage Unit Device Improved Heat Sink Storage High-capacity Storage Unit Processor Enhanced Optical Array Hackware Relay Coupler [NC] Protection Light Armor Plating Weapon Precision Beam Rifle Energy Gun Precision Beam Rifle Energy Cannon YOLO Cannon Ballistic Gun Light Assault Rifle Ballistic Cannon Advanced Assault Cannon Launcher Heavy Missile Launcher Special Weapon Remote Datajack Impact Weapon Heavy Hammer Slashing Weapon Chainsword Build | -11 -10 -10 -10 -9 -8 -8 -8 -7 -7 -7 -7 -6 -6 -6 -6 -5 ------- Run | Yrd Mat Min Exi Min Mat Gar Mat Fac Was Fac DSF Fac Gar Fac Gar Fac Slots Evolved 10 | . . . . . 4 . . 2 . . . 2 . . . 2 Power 1 | . . . . . . . . 1 . . . . . . . . Propulsion 2 | . . . . . . . . . . . . 2 . . . . Utility 5 | . . . . . 2 . . 1 . . . . . . . 2 Weapon 2 | . . . . . 2 . . . . . . . . . . . Parts Attached 109 | 7 7 . . . 9 11 4 3 1 1 2 19 18 2 13 12 Power 13 | 1 1 . . . 1 3 . 1 1 . 2 2 . . . 1 Engine 5 | 1 1 . . . 1 1 . . . . . 1 . . . . Core 8 | . . . . . . 2 . 1 1 . 2 1 . . . 1 Reactor . | . . . . . . . . . . . . . . . . . Propulsion 21 | 2 . . . . . 2 1 . . . . 6 5 . 1 4 Treads . | . . . . . . . . . . . . . . . . . Leg . | . . . . . . . . . . . . . . . . . Wheel 20 | 2 . . . . . 2 1 . . . . 5 5 . 1 4 Hover . | . . . . . . . . . . . . . . . . . Flight 1 | . . . . . . . . . . . . 1 . . . . Utility 44 | 1 5 . . . 3 5 1 1 . 1 . 6 9 2 6 4 Device 17 | . . . . . 3 1 1 . . . . 2 3 . 4 3 Storage 3 | 1 2 . . . . . . . . . . . . . . . Processor 2 | . . . . . . . . 1 . . . 1 . . . . Hackware 7 | . . . . . . . . . . . . . 4 2 1 . Protection 15 | . 3 . . . . 4 . . . 1 . 3 2 . 1 1 Artifact . | . . . . . . . . . . . . . . . . . Weapon 31 | 3 1 . . . 5 1 2 1 . . . 5 4 . 6 3 Energy Gun 14 | 1 1 . . . 2 1 1 . . . . 2 1 . 3 2 Energy Cannon 6 | . . . . . 2 . 1 . . . . 1 . . 1 1 Ballistic Gun 5 | 2 . . . . . . . . . . . . 1 . 2 . Ballistic Cannon 1 | . . . . . . . . . . . . . 1 . . . Launcher 1 | . . . . . . . . . . . . 1 . . . . Special Weapon 1 | . . . . . . . . . . . . . 1 . . . Impact Weapon 2 | . . . . . 1 . . 1 . . . . . . . . Slashing Weapon 1 | . . . . . . . . . . . . 1 . . . . Piercing Weapon . | . . . . . . . . . . . . . . . . . Special Melee Weapon . | . . . . . . . . . . . . . . . . . Unidentified Prototypes 6 | . 1 . . . 1 . 2 . . . . 1 . . . 1 Parts Lost 54 | . 1 . . . 2 6 1 . . . 2 11 6 1 3 21 Power 6 | . . . . . . 2 . . . . . 1 . 1 . 2 Propulsion 17 | . . . . . . 2 1 . . . . 5 . . 1 8 Utility 18 | . 1 . . . . 2 . . . . 2 3 2 . 1 7 Weapon 13 | . . . . . 2 . . . . . . 2 4 . 1 4 Highest Loss Streak 11 | . 1 . . . 1 3 1 . . . 1 5 4 1 1 11 To Critical Strikes . | . . . . . . . . . . . . . . . . . Average Backups 17 | 1 13 15 15 16 14 18 19 18 20 20 19 18 17 18 19 18 Power 1 | . 1 1 1 1 1 1 2 1 1 1 1 1 1 . . . Propulsion . | . . 1 1 1 2 1 . . . 1 . . 2 2 1 1 Utility 9 | . 8 9 9 9 6 8 11 10 11 11 10 9 10 10 9 10 Weapon 5 | . 3 4 4 5 4 7 6 6 6 6 6 5 4 5 6 5 Tool/Special . | . . . . . . . . . . . . . . . . . Unused Backups 38 | . 1 . . . 2 2 2 . 1 . 3 6 6 . 2 13 Power 4 | . . . . . 1 . . . . . 2 1 . . . . Propulsion 5 | . . . . . . . . . . . 1 . 3 . . 1 Utility 19 | . 1 . . . 1 2 1 . 1 . . 2 3 . . 8 Weapon 8 | . . . . . . . 1 . . . . 2 . . 2 3 Tool/Special 2 | . . . . . . . . . . . . 1 . . . 1 Average Slot Usage (%) 93 | . 99 100 100 100 89 89 89 91 92 92 87 81 98 99 99 91 Engine 5 | . 14 14 14 14 9 3 . . . . . 4 6 6 6 4 Core 5 | . . . . . . 5 9 15 15 15 15 8 6 5 6 3 Wheel 21 | . 28 28 28 28 18 17 17 15 15 15 15 15 25 26 25 19 Device 10 | . . . . . 17 9 16 15 15 15 7 11 8 6 12 21 Storage 8 | . 14 14 14 14 9 9 9 7 7 7 7 6 6 6 6 5 Processor 3 | . . . . . . . . 6 7 7 7 6 6 6 6 4 Protection 9 | . 13 14 14 14 9 17 10 7 7 7 10 6 7 2 5 4 Energy Gun 6 | . . . . . 3 9 9 7 7 7 13 7 9 13 5 5 Energy Cannon 4 | . . . . . 9 9 9 7 7 7 7 5 1 . 4 10 Ballistic Gun 7 | . 27 28 28 28 11 . . . . . . . 4 . 11 3 Impact Weapon 2 | . . . . . 2 9 9 7 7 7 . 1 . . . . Slashing Weapon 1 | . . . . . . . . . . . . 4 4 . . . Peak Build Rating 81 | 6 10 9 11 11 40 44 46 52 56 56 57 64 59 55 69 81 Average Rating 44 | 4 8 9 9 11 33 41 44 50 53 56 55 57 55 53 65 72 On Entrance 36 | . 6 9 9 11 11 40 44 45 52 56 56 54 51 56 54 66 Naked Turns . | . . . . . . . . . . . . . . . . . Heaviest Build 104 | 13 51 51 51 51 74 80 80 85 87 89 89 93 81 77 92 104 Greatest Support 56 | 32 32 32 32 32 32 32 22 22 22 22 22 48 56 48 48 48 Greatest Overweight (x) 29 | . 1 1 1 1 2 6 3 3 3 4 4 29 2 1 1 5 Average Overweight (x) 1 | . . 1 1 1 2 2 3 3 3 3 3 2 1 1 1 1 Largest Inventory Capacity 20 | 8 20 20 20 20 20 20 20 20 20 20 20 20 20 20 20 20 Average Capacity 19 | 6 17 20 20 20 20 20 20 20 20 20 20 20 20 20 20 20 Most Carried 20 | 2 15 15 17 17 19 20 20 20 20 20 20 20 20 20 20 20 Average Carried 17 | 1 13 15 15 17 15 18 19 18 19 20 19 18 17 18 19 18 Final Capacity 20 | 8 20 20 20 20 20 20 20 20 20 20 20 20 20 20 20 5 Final Carried 20 | 2 15 15 17 17 19 19 20 20 20 20 20 15 19 19 18 5 Class Distribution -------------------- 25% | Scavenger-Skirmisher 22% | Skirmisher 19% | Mutant 11% | Assassin 7% | Tank 4% | Scavenger-Tank 3% | Scavenger-Assassin Dominant Class ---------------- Mutant | -10/Materials Mutant | -10/Mines Mutant | -10/Exiles Mutant | -9/Mines Skirmisher | -8/Materials Tank | -8/Garrison Skirmisher | -8/Materials Scavenger-Assassin | -7/Factory Assassin | -7/Waste Assassin | -7/Factory Pyromaniac-Skirmisher | -7/DSF Assassin | -6/Factory Scavenger-Skirmisher | -6/Garrison Scavenger-Skirmisher | -6/Factory Scavenger-Skirmisher | -6/Garrison Scavenger-Skirmisher | -5/Factory Resources | -11 -10 -10 -10 -9 -8 -8 -8 -7 -7 -7 -7 -6 -6 -6 -6 -5 ----------- Run | Yrd Mat Min Exi Min Mat Gar Mat Fac Was Fac DSF Fac Gar Fac Gar Fac Matter Collected 2959 | 197 544 . . 92 143 90 75 . 101 . 48 274 453 96 615 231 Remotely 96 | . . . . . . . . . . . . . . . . 96 Salvage Created 6379 | . 527 . . . 269 651 560 . . . 586 1373 877 33 728 775 Parts 284 | . 40 . . . 8 39 26 . . . 27 49 23 1 35 36 Haulers Intercepted 12 | . 2 . . . . . 3 . . . . 2 . . . 5 Recyclers Shooed 7 | . 1 . . . . . . . . . . 5 . . . 1 Parts Field Recycled . | . . . . . . . . . . . . . . . . . Retrieved Matter . | . . . . . . . . . . . . . . . . . Parts Self-Destructed . | . . . . . . . . . . . . . . . . . Prevented . | . . . . . . . . . . . . . . . . . Kills | -11 -10 -10 -10 -9 -8 -8 -8 -7 -7 -7 -7 -6 -6 -6 -6 -5 ------- Run | Yrd Mat Min Exi Min Mat Gar Mat Fac Was Fac DSF Fac Gar Fac Gar Fac Combat Hostiles Destroyed 94 | . 13 . . . 4 20 6 . . . 11 14 6 . 13 7 Melee 4 | . . . . . . . . . . . . 1 3 . . . Guns 59 | . 13 . . . . 12 2 . . . 9 6 2 . 9 6 Cannons 14 | . . . . . 2 2 2 . . . . 2 1 . 4 1 AOE 15 | . . . . . 2 6 1 . . . 2 4 . . . . Classes Destroyed 16 | . 6 . . . 3 1 2 . . . 2 1 . . 1 . Worker 6 | . 2 . . . 1 . 1 . . . . . . . . 2 Builder 5 | . . . . . . . 2 . . . . 2 . . . 1 Tunneler 1 | . . . . . . . 1 . . . . . . . . . Hauler 12 | . 2 . . . . . 3 . . . . 2 . . . 5 Recycler 7 | . . . . . 2 . 1 . . . . 4 . . . . Operator 1 | . 1 . . . . . . . . . . . . . . . Watcher 5 | . 2 . . . 1 . . . . . . . 1 1 . . Swarmer 27 | . 8 . . . . 8 . . . . . 3 . . 4 4 Grunt 40 | . 5 . . . 2 10 4 . . . 6 4 2 . 6 1 Duelist 2 | . . . . . . . . . . . 1 . 1 . . . Sentry 9 | . . . . . 1 . 1 . . . . 4 3 . . . Specialist 5 | . . . . . . 2 . . . . 3 . . . . . Hunter 2 | . . . . . 1 . 1 . . . . . . . . . Programmer 7 | . . . . . . . . . . . . 3 . . 2 2 Heavy 1 | . . . . . . . . . . . 1 . . . . . Behemoth 1 | . . . . . . . . . . . . . . . 1 . Best Kill Streak 12 | . 5 . . . 5 12 4 . . . 4 6 3 1 4 9 Combat Bots Only 12 | . 3 . . . 2 12 3 . . . 4 4 2 . 4 6 Max Kills in Single Turn 3 | . 1 . . . 3 2 2 . . . 2 2 1 1 2 2 Gunslinging 1 | . . . . . . . . . . . 1 . . . . . Exploded 2 | . . . . . 1 2 1 . . . 1 2 . . . . Melee 1 | . . . . . . . . . . . . 1 1 . . . Uniques/NPCs Destroyed . | . . . . . . . . . . . . . . . . . Combat | -11 -10 -10 -10 -9 -8 -8 -8 -7 -7 -7 -7 -6 -6 -6 -6 -5 -------- Run | Yrd Mat Min Exi Min Mat Gar Mat Fac Was Fac DSF Fac Gar Fac Gar Fac Hostile Shots Fired 806 | . 71 . . . 13 113 21 . . . 57 183 96 9 55 188 Missed 280 | . 23 . . . 6 45 9 . . . 23 66 31 . 18 59 Hits 526 | . 48 . . . 7 68 12 . . . 34 117 65 9 37 129 Melee 15 | . . . . . . . . . . . . . . . . 15 Projectile 511 | . 48 . . . 7 68 12 . . . 34 117 65 9 37 114 AOE 2 | . . . . . . . . . . . . . . . . 2 Critical Strikes 20 | . . . . . 1 2 . . . . 1 4 1 . 1 10 Part Disruptions 1 | . . . . . . . . . . . . . . . 1 . Damage Taken 7953 | . 451 . . . 109 717 261 . . . 537 1476 880 68 684 2770 Core 1611 | . 103 . . . 14 125 15 . . . 17 158 108 . 66 1005 Absorbed by Shields 220 | . . . . . . 126 . . . . . . . . 94 . Core Remaining (%) 77 | 100 . . . 58 . . 72 . . . 97 . . . 60 . Volleys Fired 351 | . 75 . . 1 9 51 21 . . . 25 37 36 5 46 45 Largest 4 | . 2 . . 2 3 1 2 . . . 3 3 3 3 4 4 Hottest 339 | . 40 . . 40 195 100 161 . . . 222 206 181 181 301 339 Shots Fired 664 | . 150 . . 2 17 51 23 . . . 56 82 49 7 136 91 Gun 478 | . 150 . . 2 8 38 16 . . . 50 52 16 2 93 51 Cannon 164 | . . . . . 9 13 7 . . . 6 25 19 2 43 40 Launcher 8 | . . . . . . . . . . . . 5 3 . . . Special 14 | . . . . . . . . . . . . . 11 3 . . Kinetic 293 | . 150 . . 2 8 . . . . . . . 11 2 82 38 Thermal 349 | . . . . . 9 51 23 . . . 56 77 24 2 54 53 Explosive 8 | . . . . . . . . . . . . 5 3 . . . Electromagnetic . | . . . . . . . . . . . . . . . . . Robot Hit Streak 30 | . 13 . . 5 9 13 8 . . . 27 30 7 3 9 6 Robot Miss Streak 5 | . 5 . . . 1 2 2 . . . 2 3 3 3 4 2 Penetration Max 1 | . . . . . . . . . . . . . . . 1 1 Secondary Targets 2 | . 1 . . . . . . . . . 1 . . . . . Max Gunslinging Chain 1 | . 1 . . . . . . . . . 1 . . . . . Shots Hit Robots 434 | . 86 . . 2 7 37 21 . . . 37 64 54 4 68 54 Core Hits 227 | . 36 . . . 5 25 13 . . . 25 49 24 2 26 22 Critical Kills 1 | . . . . . . . . . . . . . . . . 1 Critical Parts Destroyed 4 | . 1 . . . . . 2 . . . . . . . 1 . Critical Strikes 24 | . 1 . . . . 1 4 . . . 2 6 7 . 2 1 Burn 10 | . . . . . . 1 2 . . . 2 4 1 . . . Destroy 3 | . 1 . . . . . . . . . . . . . 1 1 Blast 1 | . . . . . . . . . . . . . . . 1 . Smash 2 | . . . . . . . 2 . . . . . . . . . Sever 8 | . . . . . . . . . . . . 2 6 . . . Melee Attacks 106 | . . . . . . 1 28 . . . . 18 59 . . . Impact 29 | . . . . . . 1 28 . . . . . . . . . Slashing 77 | . . . . . . . . . . . . 18 59 . . . Piercing . | . . . . . . . . . . . . . . . . . Sneak Attacks 8 | . . . . . . . 5 . . . . . 3 . . . Combat Hostiles 2 | . . . . . . . . . . . . . 2 . . . Follow-up Attacks . | . . . . . . . . . . . . . . . . . Damage Inflicted 15913 | . 908 . . 23 1154 1624 1328 . . . 2010 2770 2181 54 1848 2013 Guns 5831 | . 908 . . 23 21 581 169 . . . 593 775 215 29 1425 1092 Cannons 3458 | . . . . . 658 371 241 . . . 461 495 55 25 423 729 Explosions 4149 | . . . . . 475 672 485 . . . 956 1143 226 . . 192 Melee 2475 | . . . . . . . 433 . . . . 357 1685 . . . Ramming . | . . . . . . . . . . . . . . . . . Kinetic 2910 | . 908 . . 23 21 . . . . . . . 91 25 1052 790 Thermal 9514 | . . . . . 1133 1624 895 . . . 2010 1817 179 29 796 1031 Explosive 1014 | . . . . . . . . . . . . 596 226 . . 192 Electromagnetic . | . . . . . . . . . . . . . . . . . Impact 433 | . . . . . . . 433 . . . . . . . . . Slashing 2042 | . . . . . . . . . . . . 357 1685 . . . Piercing . | . . . . . . . . . . . . . . . . . Highest Corruption 30 | . . . . . . . . . . . . 7 7 7 8 30 Average Corruption 6 | . . . . . . . . . . . . 5 7 7 7 5 Corruption Purged . | . . . . . . . . . . . . . . . . . Corruption Blocked . | . . . . . . . . . . . . . . . . . Effects 116 | . . . . . . . . . . . . 17 35 20 30 14 Message Errors 27 | . . . . . . . . . . . . 3 7 4 9 4 Matter Fused 27 | . . . . . . . . . . . . 2 11 5 7 2 Heat Flow Errors 16 | . . . . . . . . . . . . 4 2 4 5 1 Energy Discharges 16 | . . . . . . . . . . . . 1 6 4 3 2 Parts Rejected 1 | . . . . . . . . . . . . 1 . . . . Parts Fused 2 | . . . . . . . . . . . . . . 2 . . Data Loss (minor) 13 | . . . . . . . . . . . . 4 3 . 3 3 Data Loss (major) 7 | . . . . . . . . . . . . 1 2 1 3 . Misfires 4 | . . . . . . . . . . . . . 3 . . 1 Alerts 1 | . . . . . . . . . . . . . 1 . . . Weapon Failures 2 | . . . . . . . . . . . . 1 . . . 1 Overload Shots . | . . . . . . . . . . . . . . . . . Overflow Damage 878 | . . . . . 250 190 203 . . . . 144 45 . 32 14 Projectiles 467 | . . . . . 198 165 . . . . . 58 . . 32 14 Explosions 247 | . . . . . 52 25 84 . . . . 61 25 . . . Melee 164 | . . . . . . . 119 . . . . 25 20 . . . Knockbacks 2 | . . . . . . . 1 . . . . . . 1 . . Impact 1 | . . . . . . . 1 . . . . . . . . . Kinetic 1 | . . . . . . . . . . . . . . 1 . . Secondary . | . . . . . . . . . . . . . . . . . Self-Inflicted Damage 171 | . . . . . . . 81 . . . . 30 60 . . . Shots 3 | . . . . . . . 1 . . . . 1 1 . . . Rammed . | . . . . . . . . . . . . . . . . . Targets Rammed . | . . . . . . . . . . . . . . . . . Kicked . | . . . . . . . . . . . . . . . . . Crushed . | . . . . . . . . . . . . . . . . . Highest Temperature 404 | . 31 . . 6 35 48 40 . . . 96 247 291 189 404 316 Average Temperature 48 | . 7 . . 4 13 16 19 . . . 40 57 66 64 107 79 Received Heat Transfer 2105 | . 132 . . . 54 297 72 . . . 108 321 527 18 153 423 Effects 3 | . . . . . . . . . . . . . . . 3 . Energy Bleed 1 | . . . . . . . . . . . . . . . 1 . Interference 2 | . . . . . . . . . . . . . . . 2 . Siege Activations . | . . . . . . . . . . . . . . . . . Martial Activations . | . . . . . . . . . . . . . . . . . Shielding Activations . | . . . . . . . . . . . . . . . . . Robots Disrupted . | . . . . . . . . . . . . . . . . . Combat Hostiles . | . . . . . . . . . . . . . . . . . Robots Corrupted 2 | . . . . . . . 2 . . . . . . . . . Combat Hostiles 1 | . . . . . . . 1 . . . . . . . . . Parts Fried 4 | . . . . . . . 4 . . . . . . . . . Impact Corruptions 6 | . . . . . . . 6 . . . . . . . . . Robots Melted 1 | . . . . . . . . . . . . 1 . . . . Combat Hostiles 1 | . . . . . . . . . . . . 1 . . . . Parts Melted 20 | . . . . . 5 2 1 . . . 3 4 3 . 1 1 Heat Transferred 13264 | . . . . . 960 2132 1278 . . . 3043 3160 446 62 999 1184 Parts Sabotaged . | . . . . . . . . . . . . . . . . . Parts Stolen . | . . . . . . . . . . . . . . . . . Parts Stripped . | . . . . . . . . . . . . . . . . . Power Chain Reactions . | . . . . . . . . . . . . . . . . . Alert | -11 -10 -10 -10 -9 -8 -8 -8 -7 -7 -7 -7 -6 -6 -6 -6 -5 ------- Run | Yrd Mat Min Exi Min Mat Gar Mat Fac Was Fac DSF Fac Gar Fac Gar Fac Maximum Alert Level 2 | . . . . . . 2 2 . . . 1 1 2 1 1 2 Low Security (%) 59 | 100 100 100 . 100 100 23 25 100 100 100 64 88 . 57 52 44 Level 1 27 | . . . . . . 9 53 . . . 35 11 68 42 47 27 Level 2 13 | . . . . . . 66 21 . . . . . 31 . . 28 Level 3 . | . . . . . . . . . . . . . . . . . Level 4 . | . . . . . . . . . . . . . . . . . Level 5 . | . . . . . . . . . . . . . . . . . High Security . | . . . . . . . . . . . . . . . . . Max Security . | . . . . . . . . . . . . . . . . . Sterilizations 1 | . . . . . . . . . . . 1 . . . . . Peak Influence 679 | . 112 . . 48 173 678 526 59 9 5 276 307 679 361 394 484 Initial 356 | . . . . . . 83 330 59 9 . . 144 209 356 25 206 Average 192 | . 40 . . 5 56 427 303 15 1 . 144 72 398 188 222 275 Influence Increases 4507 | . 399 . . 58 283 655 353 26 . 5 296 577 710 13 419 713 Destroy 0b10 Robot/C 2300 | . 260 . . 40 100 400 120 . . . 220 280 360 . 260 260 Destroy 0b10 Robot/NC 240 | . 35 . . . 20 . 40 . . . 15 40 30 10 10 40 Destroy Leader 412 | . 68 . . 10 32 20 36 . . . 30 94 30 2 30 60 Allied During Kill 123 | . . . . 8 5 . . . . . . . 91 . . 19 Successful Hack 113 | . 21 . . . 8 14 9 26 . 5 . 16 . . 14 . Disable Machine 435 | . . . . . 15 30 60 . . . . 105 . . . 225 Anti-Garrison Action 250 | . . . . . . 100 . . . . . . 100 . 50 . Destroy Structure 484 | . . . . . 73 76 73 . . . 31 42 69 1 25 94 Lose Combat Pursuer 150 | . 15 . . . 30 15 15 . . . . . 30 . 30 15 Influence Decreases 4140 | . 399 . . 58 155 105 900 131 26 5 20 554 330 655 62 740 Entered New Map 1227 | . . . . . . 45 348 72 17 . . 132 90 323 12 188 Time Decay 2122 | . 389 . . 58 135 . 542 59 9 5 . 321 . 302 . 302 Lost Part 521 | . 10 . . . 10 60 10 . . . 20 101 60 10 30 210 Lost Ally 270 | . . . . . 10 . . . . . . . 180 20 20 40 Squads Dispatched 19 | . 3 . . . 1 . 1 . . . 2 7 . 1 . 4 Investigation 2 | . 1 . . . . . . . . . . . . . . 1 Extermination 3 | . . . . . . . . . . . . 2 . . . 1 Reinforcement 8 | . 2 . . . 1 . 1 . . . 2 1 . . . 1 Assault 1 | . . . . . . . . . . . . . . . . 1 Garrison 5 | . . . . . . . . . . . . 4 . 1 . . Intercept . | . . . . . . . . . . . . . . . . . Searches Triggered . | . . . . . . . . . . . . . . . . . Construction Impeded 1 | . . . . . . . . . . . . 1 . . . . Haulers Reinforced 1 | . . . . . . . . . . . . . . . . 1 Active Scanning Responses . | . . . . . . . . . . . . . . . . . Cargo Convoy Interrupts . | . . . . . . . . . . . . . . . . . Stealth | -11 -10 -10 -10 -9 -8 -8 -8 -7 -7 -7 -7 -6 -6 -6 -6 -5 --------- Run | Yrd Mat Min Exi Min Mat Gar Mat Fac Was Fac DSF Fac Gar Fac Gar Fac Distress Signals 5 | . 1 . . . 1 . 1 . . . . 1 . 1 . . Communications Jammed . | . . . . . . . . . . . . . . . . . Distress Signals . | . . . . . . . . . . . . . . . . . Times Spotted 156 | . 25 . . . 4 19 12 1 . . 11 16 24 4 12 28 Peak Tracking Total 14 | . 6 . . . 4 7 3 1 . . 4 4 4 2 3 14 Tactical Retreats 8 | . 1 . . . 1 1 1 . . . . . 2 . 1 1 Traps | -11 -10 -10 -10 -9 -8 -8 -8 -7 -7 -7 -7 -6 -6 -6 -6 -5 ------- Run | Yrd Mat Min Exi Min Mat Gar Mat Fac Was Fac DSF Fac Gar Fac Gar Fac Traps Triggered 23 | . 2 . . . . 3 . 1 . . . . 5 . 9 3 Indirectly . | . . . . . . . . . . . . . . . . . Trap Hack Attempts . | . . . . . . . . . . . . . . . . . Triggered . | . . . . . . . . . . . . . . . . . Disarmed . | . . . . . . . . . . . . . . . . . Reprogrammed . | . . . . . . . . . . . . . . . . . Reused . | . . . . . . . . . . . . . . . . . Traps Extracted . | . . . . . . . . . . . . . . . . . Installed . | . . . . . . . . . . . . . . . . . Triggered . | . . . . . . . . . . . . . . . . . Machines | -11 -10 -10 -10 -9 -8 -8 -8 -7 -7 -7 -7 -6 -6 -6 -6 -5 ---------- Run | Yrd Mat Min Exi Min Mat Gar Mat Fac Was Fac DSF Fac Gar Fac Gar Fac Machines Disabled 33 | . . . . . 1 3 4 . . . . 7 2 . 1 15 Max in Single Turn 12 | . . . . . 1 1 3 . . . . 3 1 . 1 12 Garrison Relay 4 | . . . . . . 1 . . . . . . 2 . 1 . Machines Repaired . | . . . . . . . . . . . . . . . . . Machines Dismantled . | . . . . . . . . . . . . . . . . . Machines Sabotaged . | . . . . . . . . . . . . . . . . . Overloaded Fab Kills . | . . . . . . . . . . . . . . . . . Hacking | -11 -10 -10 -10 -9 -8 -8 -8 -7 -7 -7 -7 -6 -6 -6 -6 -5 --------- Run | Yrd Mat Min Exi Min Mat Gar Mat Fac Was Fac DSF Fac Gar Fac Gar Fac Machines Accessed 31 | . 6 . 2 . 3 2 5 1 . 1 . 5 . 1 3 2 Terminals 25 | . 6 . . . 2 2 5 1 . 1 . 3 . . 3 2 Fabricators . | . . . . . . . . . . . . . . . . . Repair Stations 1 | . . . . . . . . . . . . 1 . . . . Recycling Units . | . . . . . . . . . . . . . . . . . Scanalyzers . | . . . . . . . . . . . . . . . . . Garrison Access 3 | . . . . . 1 . . . . . . 1 . 1 . . Total Hacks 74 | . 19 . 5 . 5 3 21 2 . 1 . 9 . 1 4 4 Successful 35 | . 8 . 5 . 2 1 9 2 . 1 . 4 . 1 2 . Failed 39 | . 11 . . . 3 2 12 . . . . 5 . . 2 4 Catastrophic 8 | . . . . . . . 4 . . . . . . . 1 3 Database Lockouts . | . . . . . . . . . . . . . . . . . Manual 45 | . 17 . 1 . 4 . 20 1 . . . 1 . . . 1 Terminals 64 | . 19 . . . 4 3 21 2 . 1 . 6 . . 4 4 Fabricators . | . . . . . . . . . . . . . . . . . Repair Stations 2 | . . . . . . . . . . . . 2 . . . . Recycling Units . | . . . . . . . . . . . . . . . . . Scanalyzers . | . . . . . . . . . . . . . . . . . Garrison Access 3 | . . . . . 1 . . . . . . 1 . 1 . . Terminal Hacks 17 | . 2 . 5 . . 1 2 2 . 1 . 2 . . 2 . Record 6 | . . . 4 . . . . 2 . . . . . . . . Robot Analysis 2 | . 1 . . . . . 1 . . . . . . . . . Open DSF 2 | . . . . . . . . . . 1 . 1 . . . . Branch Access Points 1 | . . . . . . . 1 . . . . . . . . . Emergency Access Points 2 | . . . . . . 1 . . . . . . . . 1 . Locate Traps 1 | . . . . . . . . . . . . 1 . . . . Hauler Manifests 1 | . 1 . . . . . . . . . . . . . . . Patrol Navigation 1 | . . . . . . . . . . . . . . . 1 . Proto ID Catalog 1 | . . . 1 . . . . . . . . . . . . . Fabricator Hacks . | . . . . . . . . . . . . . . . . . Repair Station Hacks 1 | . . . . . . . . . . . . 1 . . . . Scan Component 1 | . . . . . . . . . . . . 1 . . . . Recycling Unit Hacks . | . . . . . . . . . . . . . . . . . Scanalyzer . | . . . . . . . . . . . . . . . . . Garrison Access Hacks 3 | . . . . . 1 . . . . . . 1 . 1 . . Unlock Access 3 | . . . . . 1 . . . . . . 1 . 1 . . Unauthorized Hacks 14 | . 6 . . . 1 . 7 . . . . . . . . . Terminals 14 | . 6 . . . 1 . 7 . . . . . . . . . Botnet 6 | . 2 . . . 1 . 3 . . . . . . . . . Skim 8 | . 4 . . . . . 4 . . . . . . . . . Fabricators . | . . . . . . . . . . . . . . . . . Repair Stations . | . . . . . . . . . . . . . . . . . Recycling Units . | . . . . . . . . . . . . . . . . . Scanalyzers . | . . . . . . . . . . . . . . . . . Garrison Access . | . . . . . . . . . . . . . . . . . Data Cores Recovered 1 | . . . . . . . . . . . . . . 1 . . Used . | . . . . . . . . . . . . . . . . . Hacking Detections 24 | . 6 . . . 2 2 4 1 . 1 . 5 . . 1 2 Full Trace Events 3 | . 1 . . . . 1 . . . . . . . . . 1 Feedback Events . | . . . . . . . . . . . . . . . . . Feedback Blocked . | . . . . . . . . . . . . . . . . . Robot Schematics Acquired . | . . . . . . . . . . . . . . . . . Robots Built . | . . . . . . . . . . . . . . . . . Authchips . | . . . . . . . . . . . . . . . . . Time . | . . . . . . . . . . . . . . . . . Total Robot Build Rating . | . . . . . . . . . . . . . . . . . Part Schematics Acquired . | . . . . . . . . . . . . . . . . . Parts Built . | . . . . . . . . . . . . . . . . . Authchips . | . . . . . . . . . . . . . . . . . Time . | . . . . . . . . . . . . . . . . . Total Part Build Rating . | . . . . . . . . . . . . . . . . . Parts Repaired . | . . . . . . . . . . . . . . . . . Time . | . . . . . . . . . . . . . . . . . Parts Recycled . | . . . . . . . . . . . . . . . . . Recycled Matter . | . . . . . . . . . . . . . . . . . Retrieved Matter . | . . . . . . . . . . . . . . . . . Retrieved Components . | . . . . . . . . . . . . . . . . . Parts Scanalyzed . | . . . . . . . . . . . . . . . . . Part Schematics Acquired . | . . . . . . . . . . . . . . . . . Parts Damaged . | . . . . . . . . . . . . . . . . . Bothacking | -11 -10 -10 -10 -9 -8 -8 -8 -7 -7 -7 -7 -6 -6 -6 -6 -5 ------------ Run | Yrd Mat Min Exi Min Mat Gar Mat Fac Was Fac DSF Fac Gar Fac Gar Fac Used RIF Installer 2 | . . . . . . 1 . . . . . . 1 . . . Program Shield 1 | . . . . . . . . . . . . . 1 . . . Robots Hacked 8 | . . . . . . . . . . . . . 6 2 . . Non-combat . | . . . . . . . . . . . . . . . . . Combat 8 | . . . . . . . . . . . . . 6 2 . . Robot Hacks Applied 9 | . . . . . . . . . . . . . 7 2 . . amplify_resonance 2 | . . . . . . . . . . . . . 2 . . . go_dormant 1 | . . . . . . . . . . . . . 1 . . . streamctrl_high 5 | . . . . . . . . . . . . . 4 1 . . formatsys_high 1 | . . . . . . . . . . . . . . 1 . . Relay Couplers Released 18 | . . . . . . 4 . . . . . . 9 . 5 . Machine Destruction 18 | . . . . . . 4 . . . . . . 9 . 5 . Attached 7 | . . . . . . . . . . . . . 4 2 1 . Fabnet Peak Effective % . | . . . . . . . . . . . . . . . . . Robots Rewired 7 | . . . . . . . . . . . . . 7 . . . Allies Hacked . | . . . . . . . . . . . . . . . . . Hacks Repelled . | . . . . . . . . . . . . . . . . . Allies | -11 -10 -10 -10 -9 -8 -8 -8 -7 -7 -7 -7 -6 -6 -6 -6 -5 -------- Run | Yrd Mat Min Exi Min Mat Gar Mat Fac Was Fac DSF Fac Gar Fac Gar Fac Total Allies 18 | . . . . 3 . . . . . . . . 11 2 2 . Largest Group 5 | . . . . 3 3 . . . . . . . 5 2 2 2 Highest-Rated Group 181 | . . . . 40 40 . . . . . . . 181 64 160 160 Highest-Rated Ally 80 | . . . . 16 16 . . . . . . . 47 41 80 80 Total Orders . | . . . . . . . . . . . . . . . . . Ally Attacks 139 | . . . . 9 22 . . . . . . . 77 2 2 27 Total Damage 3207 | . . . . 90 203 . . . . . . . 1887 66 106 855 Kills 22 | . . . . 2 1 . . . . . . . 12 1 . 6 Allies Corrupted 2 | . . . . . . . . . . . . . . . . 2 Allies Melted . | . . . . . . . . . . . . . . . . . Intel | -11 -10 -10 -10 -9 -8 -8 -8 -7 -7 -7 -7 -6 -6 -6 -6 -5 ------- Run | Yrd Mat Min Exi Min Mat Gar Mat Fac Was Fac DSF Fac Gar Fac Gar Fac Active Infowar (turns) 7363 | . . . . . 581 15 1310 264 138 209 214 1366 1106 663 833 664 Optics 5452 | . . . . . . . . 263 138 209 214 1362 1106 663 833 664 Structural 3392 | . . . . . 581 15 1310 264 138 204 . 880 . . . . Jamming 468 | . . . . . . . . . . . . . . . . 468 Robot Analysis Total 2 | . 1 . . . . . 1 . . . . . . . . . Derelict Logs Recovered 1 | . . . . 1 . . . . . . . . . . . . Drone Launches . | . . . . . . . . . . . . . . . . . Drone Recoveries . | . . . . . . . . . . . . . . . . . Exploration | -11 -10 -10 -10 -9 -8 -8 -8 -7 -7 -7 -7 -6 -6 -6 -6 -5 ------------- Run | Yrd Mat Min Exi Min Mat Gar Mat Fac Was Fac DSF Fac Gar Fac Gar Fac Turns Passed 10362 | 48 1168 18 310 490 581 734 1548 264 138 209 214 1366 1106 663 833 672 Spaces Moved 6340 | 40 828 16 269 414 301 432 814 197 103 151 83 789 548 390 550 415 Core 19 | 8 . . . . . . . . . . . 11 . . . . Treads . | . . . . . . . . . . . . . . . . . Legs . | . . . . . . . . . . . . . . . . . Wheels 6321 | 32 828 16 269 414 301 432 814 197 103 151 83 778 548 390 550 415 Hover . | . . . . . . . . . . . . . . . . . Flight . | . . . . . . . . . . . . . . . . . Fastest Speed 50 | 50 100 115 115 115 130 125 130 130 130 130 115 113 105 105 105 105 Average Speed 119 | 90 109 115 115 115 130 130 130 130 130 130 132 134 105 105 105 117 Slowest Speed 1500 | 100 115 115 115 115 130 180 130 130 130 145 145 1500 130 105 105 165 Overloaded Moves . | . . . . . . . . . . . . . . . . . Propulsion Burnouts . | . . . . . . . . . . . . . . . . . Robots Hopped . | . . . . . . . . . . . . . . . . . Potential Cave-ins . | . . . . . . . . . . . . . . . . . Cave-ins Triggered . | . . . . . . . . . . . . . . . . . Exploration Rate (%) 40 | 3 99 4 60 77 22 55 48 6 75 5 95 23 49 8 44 14 Regions Visited 16 Branch Regions 3 Pre-discovered Areas 1 | . . . 1 . . . . . . . . . . . . . Known Exits Taken 4 | . . . . . 1 . . . . 1 . 1 . 1 . . Unknown Exits Taken 6 | 1 1 1 1 1 . . 1 . . . . . . . . . Scrap Searched 1 | . . . . 1 . . . . . . . . . . . . Spaces Dug 42 | . . . . . . 3 12 . . . . 7 18 1 1 . Terrain Destroyed 405 | . . . . . 99 68 68 . . . 38 49 35 1 2 45 Melee 32 | . . . . . . . 12 . . . . 7 13 . . . Projectile 40 | . . . . . 4 6 3 . . . 1 3 5 1 2 15 AOE 333 | . . . . . 95 62 53 . . . 37 39 17 . . 30 Terrain Rammed . | . . . . . . . . . . . . . . . . . Walls Destroyed . | . . . . . . . . . . . . . . . . . Machines Disabled . | . . . . . . . . . . . . . . . . . Actions | -11 -10 -10 -10 -9 -8 -8 -8 -7 -7 -7 -7 -6 -6 -6 -6 -5 --------- Run | Yrd Mat Min Exi Min Mat Gar Mat Fac Was Fac DSF Fac Gar Fac Gar Fac Total 8367 | 48 955 15 269 426 461 528 1224 206 107 163 129 993 956 638 719 530 Wait 1030 | . 19 . . 12 127 15 332 2 . 12 5 97 115 236 23 35 Move 6322 | 39 827 15 268 413 300 430 813 197 102 150 82 788 546 389 548 415 Hop . | . . . . . . . . . . . . . . . . . Pick Up 98 | 2 16 . 1 . 7 8 8 3 1 . 5 11 17 3 9 7 Fast Attach 49 | 6 4 . . . 4 . 3 . 1 . 2 12 5 . 6 6 Attach 51 | . 1 . . . 6 8 3 3 . . 1 8 8 2 6 5 Detach 25 | . 2 . . . 3 2 4 . . . 2 3 4 1 3 1 Swap 47 | 1 4 . . . 1 3 2 . . 1 1 3 10 2 11 8 Drop 79 | . 7 . . . 4 5 10 1 2 . 6 14 11 . 11 8 Fire 351 | . 75 . . 1 9 51 21 . . . 25 37 36 5 46 45 Melee 106 | . . . . . . 1 28 . . . . 18 59 . . . Ram . | . . . . . . . . . . . . . . . . . Kick . | . . . . . . . . . . . . . . . . . Crush . | . . . . . . . . . . . . . . . . . Escape Stasis 85 | . . . . . . 5 . . . . . . 24 . 56 . Rewire 124 | . . . . . . . . . 1 . . 2 121 . . . Trap . | . . . . . . . . . . . . . . . . . Miscellaneous . | . . . . . . . . . . . . . . . . . Route ------- -11/Scrapyard -10/Materials (discovered 6 exits: [*Mat x3] / [*Min x2] / [*Sub]) -10/Mines -10/Exiles -9/Mines -8/Materials -8/Garrison (discovered 2 exits: *Mat x2) -8/Materials -7/Factory -7/Waste -7/Factory -7/DSF -6/Factory (discovered 2 exits: *Fac / Gar) -6/Garrison -6/Factory (discovered 2 exits: *Fac / Gar) -6/Garrison -5/Factory History --------- Turn | Location | Event 17 | -11/Scrapyard | Discovered new exit (range 16) 49 | -11/Scrapyard | Entered Materials 165 | -10/Materials | Discovered new exit (range 10) 313 | -10/Materials | Build established: Mutant 713 | -10/Materials | Discovered new exit (range 13) 821 | -10/Materials | Discovered new exit (range 5) 965 | -10/Materials | Discovered new exit (range 16) 1143 | -10/Materials | Discovered new exit (range 11) 1146 | -10/Materials | Discovered new exit (range 8) 1217 | -10/Materials | Entered Mines 1229 | -10/Mines | Deemed a non-threat by the Exiles lab entrance 1230 | -10/Mines | Discovered new exit (range 5) 1235 | -10/Mines | Entered Exiles 1267 | -10/Exiles | Met 8R-AWN 1281 | -10/Exiles | Met EX-HEX 1329 | -10/Exiles | Met EX-DEC 1333 | -10/Exiles | Learned location of Zion (-7) 1367 | -10/Exiles | Met EX-BIN 1380 | -10/Exiles | Aligned with FarCom system 1382 | -10/Exiles | Given EX-Vault access code 1416 | -10/Exiles | Opened EX-Vault 1428 | -10/Exiles | Found YOLO Cannon 1449 | -10/Exiles | Warned to stay clear of 0b10 Research branches 1534 | -10/Exiles | Discovered new exit (range 10) 1545 | -10/Exiles | Left Exiles lab with YOLO Cannon 1545 | -10/Exiles | Entered Mines 1592 | -9/Mines | Met a Derelict bent on vengeance 1658 | -9/Mines | Assisted by bots powering up and referring to "LRC-V3" 1746 | -9/Mines | Learned Materials security intel 2022 | -9/Mines | Discovered new exit (range 8) 2035 | -9/Mines | Entered Materials 2035 | -8/Materials | Accompanied by 3 allies 2035 | -8/Materials | Evolved 4 slots: Utility x2, Weapon x2 2256 | -8/Materials | Lost 3 allies 2334 | -8/Materials | Build established: Skirmisher 2614 | -8/Materials | Identified exit to Garrison 2616 | -8/Materials | Entered Garrison 2753 | -8/Garrison | Triggered checkpoint 2756 | -8/Garrison | Triggered checkpoint 2796 | -8/Garrison | Triggered checkpoint 2823 | -8/Garrison | Triggered checkpoint 2860 | -8/Garrison | Destroyed 12 combat bots 2863 | -8/Garrison | Lost 3 parts (1p1n1u) 2942 | -8/Garrison | Build established: Tank 3101 | -8/Garrison | Discovered new exit (range 8) 3160 | -8/Garrison | Garrison Relay disabled 3299 | -8/Garrison | Discovered new exit (range 12) 3309 | -8/Garrison | Installed Relay Interface Framework 3350 | -8/Garrison | Entered Materials 3507 | -8/Materials | Discovered new exit (range 10) 3881 | -8/Materials | Build established: Skirmisher 4898 | -8/Materials | Entered Factory 4898 | -7/Factory | Evolved 2 slots: Power x1, Utility x1 5162 | -7/Factory | Sucked down chute 5162 | -7/Factory | Entered Waste 5162 | -7/Waste | The area was eerily silent 5186 | -7/Waste | Build established: Scavenger-Assassin 5281 | -7/Waste | Discovered new exit (range 10) 5300 | -7/Waste | Entered Factory 5373 | -7/Factory | Identified exit to DSF 5509 | -7/Factory | Entered DSF 5543 | -7/DSF | Additional patrols routed to DSF 5661 | -7/DSF | Sterilization system engaged 5678 | -7/DSF | Discovered new exit (range 15) 5681 | -7/DSF | Ambient heat levels rising (+10) 5696 | -7/DSF | Ambient heat levels rising (+10) 5711 | -7/DSF | Ambient heat levels rising (+10) 5723 | -7/DSF | Entered Factory 5723 | -6/Factory | Evolved 2 slots: Propulsion x2 6007 | -6/Factory | Discovered new exit (range 7) 6168 | -6/Factory | Build established: Assassin 6702 | -6/Factory | Garrison activated, responded to threat 6795 | -6/Factory | Lost 5 parts (2n1u2w) 7017 | -6/Factory | Garrison activated, responded to threat 7088 | -6/Factory | Identified exit to Garrison 7089 | -6/Factory | Entered Garrison 7382 | -6/Garrison | Expanded RIF knowledge: Program Shield 7582 | -6/Garrison | Build established: Scavenger-Skirmisher 7585 | -6/Garrison | Triggered checkpoint 7691 | -6/Garrison | Lost 3 allies 7708 | -6/Garrison | Garrison Relay disabled 7837 | -6/Garrison | Triggered checkpoint 7837 | -6/Garrison | Spotted B-75 Beast 7846 | -6/Garrison | Triggered checkpoint 7873 | -6/Garrison | Allies destroyed B-75 Beast 7879 | -6/Garrison | Triggered checkpoint 7941 | -6/Garrison | Lost 4 parts (2u2w) 8057 | -6/Garrison | Triggered checkpoint 8070 | -6/Garrison | Garrison Relay disabled 8073 | -6/Garrison | Lost 3 allies 8171 | -6/Garrison | Discovered new exit (range 20) 8177 | -6/Garrison | Triggered checkpoint 8195 | -6/Garrison | Entered Factory 8195 | -6/Factory | Accompanied by 1 ally 8262 | -6/Factory | Garrison activated, responded to threat 8352 | -6/Factory | Discovered new exit (range 21) 8857 | -6/Factory | Identified exit to Garrison 8858 | -6/Factory | Entered Garrison 8858 | -6/Garrison | Accompanied by 1 ally 9058 | -6/Garrison | Triggered checkpoint 9060 | -6/Garrison | Garrison Relay disabled 9257 | -6/Garrison | Spotted B-75 Beast 9292 | -6/Garrison | Destroyed B-75 Beast 9332 | -6/Garrison | Triggered checkpoint 9579 | -6/Garrison | Found embedded Infiltrators 9603 | -6/Garrison | Discovered new exit (range 12) 9691 | -6/Garrison | Entered Factory 9691 | -5/Factory | Accompanied by 2 allies 9691 | -5/Factory | Evolved 2 slots: Utility x2 10291 | -5/Factory | First assault squad dispatched 10292 | -5/Factory | System corruption reached 10% 10324 | -5/Factory | Lost 11 parts (2p6n2u1w) 10352 | -5/Factory | Core integrity fell below 50% 10356 | -5/Factory | System corruption reached 30% 10361 | -5/Factory | Core integrity fell below 20% 10363 | -5/Factory | Destroyed by L-41 Fighter with Axe Last Messages --------------- 10347_ Quantum Rifle destroyed. 10347_ Adv. Cooling System destroyed. 10347_ System corrupted by crushing effect (+3). 10347_ System corrupted by crushing effect (+5). 10348_ K-01 Serf collects debris. 10350_ Imp. Cooling System destroyed. 10353_ K-01 Serf collects debris. 10355_ Enh. Optical Array destroyed. 10355_ System corrupted by crushing effect (+4). 10356_ U-05 Engineer lays Concrete. 10357_ G-67 Veteran suffers critical hit (Burn). 10357_ M-28 Smith repairs B-60 Warrior. 10358_ U-05 Engineer lays Concrete. 10358_ Critical hit (Burn: +37). 10359_ U-05 Engineer lays Concrete. 10359_ K-01 Serf collects debris. 10361_ Critical hit (Burn: +37). 10363_ Hcp. Storage Unit destroyed. 10363_ K-01 Serf collects debris. [Achievement: Just Browsing] Map ----- +----------------------------------------------------+ | ###### ### """"""""" #*!=+%* ! ! #?????????? | | + #%%%#[! #?????????? | | +##### #"### """"""""" #* !#| / ^ | | ?????# ###?# #% # # | | ?????# ????# """"""""" #=% # #???? | | ???????????# #= ############?????????? | | ???????????# "F"" # #????????????????????? | | ???????????+ """" #| #????????????????????? | | ???????????# #% #????????????????????? | | ???????????############## #????????????????????? | | ????????????????????????# / ???????????????????? | | ????????????????????????# # "??????????????????? | | ????????????????????????# # "Y?????????????????? | | ????????????????????????# #?""" ???????????????? | | ????????????????????????# #??####??????????????? | | ????????????????????????# #?? ?????????????????? | | ????????????????????????# #? ?????????????????? | | ????????????????????????# #? ??????????????????? | | ???????????#????????????# # ???????????????????? | | ???????????# ??????????+ # ???????????????????? | | ???????????# ????????# +????????????????????? | | ???????????# ??????# #????????????????????? | | ???????????# ????# #????????????????????? | | ???????????# ??#!] ######+#####T #??????? | | ???????????# #!b m k ??? | | ???????????# !g@!! gg ##????????????? | | ??????????????###########lg"""""" #?????????????? | | ????????????????????????#! """"""g #?????????????? | | ???????????????????????? g """"" #?????????????? | | ???????????????????????? g"""""g #?????????????? | | ???????????????????o???? A u g ????????????? | | ???????????????????????? ! k i ? ???????????? | | ???????????????????????# g % ??? ???????????? | | ???????????????????????### ####### ??????????????? | | ?????????????????????????? #?????????????????????? | | ?????????????????????????? #?????????????????????? | | ??????????????????????????%#?????????????????????? | | ?????????????????????????? #?????????????????????? | | ?????????????????????????? #?????????????????????? | | ?????????????????????????? #?????????????????????? | | ?????????????????????????? #?????????????????????? | | ?????????????????????????? #?????????????????????? | | ?????????????????????????? #?????????????????????? | | ?????????????????????????? ??????????????????????? | | ?????????????????????????????????????????????????? | | ?????????????????????????????????????????????????? | | ?????????????????????????????????????????????????? | | ?????????????????????????????????????????????????? | | ?????????????????????????????????????????????????? | | ?????????????????????????????????????????????????? | +----------------------------------------------------+ Best States ------------- Heat Dissipation 98 Energy Generation 44 Energy Capacity 1015 Matter Stores 300 Matter Capacity 300 Sight Range 22 Terrain Scan Density 10 Jamming Range 14 Armor Coverage 375 Weapon Cycling 20 Evasion (%) 50 Particle Charging 15 Relay Coupler Types 2 Relay Coupler Value 65 Item Schematics ----------------- None Robot Schematics ------------------ None Fabricated ------------ Nothing Repaired ---------- Nothing Alien Tech Used ----------------- None Achievements -------------- Assimilation Complete Just Browsing Challenges ------------ None Game ------ Seed CoilEtherialInsulator Manual? 0 Play Time 02:16:26 Cumulative 32.6 hours Start 2025.10.19 @ 13:26:00 End 2025.10.19 @ 16:59:06 Sessions 3 Manual Loads 0 Difficulty Rogue Special Mode None Game No. 33 Rogue 33 Adventurer 0 Explorer 0 Win Type - Total 0 Types 0/0/0/0/0/0/0/0/0/0 Lore% 21 Gallery% 25 Achievement% 26 Wizard Run 0 Options --------- Layout 1 ASCII 0 Keyboard 1 Movement Numpad Keybinds 0 Fullscreen 1 Font 24/Smallcaps Map View 50x35 Zoom Use 0% Tactical HUD 1 Map Filters NONE Filters NONE Steam 1 RUN: f3cb2900-133b-4649-9b8c-85101e2188e9